Workbook

Sheet Лист1 (hidden)
B2: Дата | C2: Команда 1 | D2: Команда 2
B3: 30.10. 03:00 | C3: Индиана | D3: Орландо | E3: 97 | F3: 87 | G3: =E3+F3 -> 184 | H3: 188.5 | I3: М
B4: 30.10. 04:00 | C4: Майами | D4: Чикаго | E4: 107 | F4: 95 | G4: =F4+E4 -> 202 | H4: 188.5 | J4: Б
B5: 30.10. 04:01 | C5: Лейкерс | D5: Клипперс | E5: 116 | F5: 103 | G5: =F5+E5 -> 219 | H5: 201.5 | J5: Б
B6: 31.10. 06:30 | C6: Голден Стэйт | D6: Лейкерс | E6: 125 | F6: 94 | G6: =F6+E6 -> 219 | H6: 205.5 | J6: Б
B7: 31.10. 06:00 | C7: Сакраменто | D7: Денвер | E7: 90 | F7: 88 | G7: 178 | H7: 203.5 | I7: М
B8: 31.10. 06:00 | C8: Финикс | D8: Портленд | E8: 104 | F8: 91 | G8: 195 | H8: 198.5 | I8: М
B9: 31.10. 05:00 | C9: Юта | D9: Оклахома | E9: 98 | F9: 101 | G9: 199 | H9: 192.5 | J9: Б
B10: 31.10. 04:30 | C10: Даллас | D10: Атланта | E10: 118 | F10: 109 | G10: 227 | H10: 195.5 | J10: Б
B11: 31.10. 04:30 | C11: Сан-Антонио | D11: Мемфис | E11: 101 | F11: 94 | G11: 195 | H11: 189.5 | J11: Б
B12: 31.10. 04:00 | C12: Миннесота | D12: Орландо | E12: 120 | F12: 115 | G12: 235 | H12: 198.5 | J12: Б
B13: 31.10. 04:00 | C13: Нью-Орлеан | D13: Индиана | E13: 90 | F13: 95 | G13: 185 | H13: 186.5 | I13: М
B14: 31.10. 04:00 | C14: Хьюстон | D14: Шарлотт | E14: 96 | F14: 83 | G14: 179 | H14: 202.5 | I14: М
B15: 31.10. 03:30 | C15: Детройт | D15: Вашингтон | E15: 113 | F15: 102 | G15: 215 | H15: 188.5 | J15: Б
B16: 31.10. 03:30 | C16: Нью-Йорк | D16: Милуоки | E16: 90 | F16: 83 | G16: 173 | H16: 195.5 | I16: М
B17: 31.10. 03:00 | C17: Кливленд | D17: Бруклин | E17: 98 | F17: 94 | G17: 192 | H17: 194.5 | I17: М
B18: 31.10. 03:00 | C18: Торонто | D18: Бостон | E18: 93 | F18: 87 | G18: 180 | H18: 189.5 | I18: М
B19: 31.10. 03:00 | C19: Филадельфия | D19: Майами | E19: 114 | F19: 110 | G19: 224 | H19: 195.5 | J19: Б
B20: 01.11. 06:30 | C20: Клипперс | D20: Голден Стэйт | E20: 126 | F20: 115 | G20: 241 | H20: 204.5 | J20: Б
B21: 01.11. 04:00 | C21: Чикаго | D21: Нью-Йорк | E21: 82 | F21: 81 | G21: 163 | H21: 188.5 | I21: М
B22: 02.11. 06:30 | C22: Лейкерс | D22: Сан-Антонио | E22: 85 | F22: 91 | G22: 176 | H22: 208.5 | I22: М
B23: 02.11. 06:00 | C23: Сакраменто | D23: Клипперс | E23: 101 | F23: 110 | G23: 211 | H23: 201.5 | J23: Б
B24: 02.11. 06:00 | C24: Финикс | D24: Юта | E24: 87 | F24: 84 | G24: 171 | H24: 195.5 | I24: М
B25: 02.11. 05:00 | C25: Денвер | D25: Портленд | E25: 98 | F25: 113 | G25: 211 | H25: 198.5 | J25: Б
B26: 02.11. 04:00 | C26: Бруклин | D26: Майами | E26: 101 | F26: 100 | G26: 201 | H26: 193.5 | J26: Б
B27: 02.11. 04:00 | C27: Мемфис | D27: Детройт | E27: 111 | F27: 108 | G27: 219 | H27: 188.5 | J27: Б
B28: 02.11. 04:00 | C28: Миннесота | D28: Оклахома | E28: 100 | F28: 81 | G28: 181 | H28: 201.5 | I28: М
B29: 02.11. 04:00 | C29: Хьюстон | D29: Даллас | E29: 113 | F29: 105 | G29: 218 | H29: 206.5 | J29: Б
B30: 02.11. 03:30 | C30: Атланта | D30: Торонто | E30: 102 | F30: 95 | G30: 197 | H30: 195.5 | J30: Б
B31: 02.11. 03:30 | C31: Бостон | D31: Милуоки | E31: 98 | F31: 105 | G31: 203 | H31: 186.5 | J31: Б
B32: 02.11. 03:00 | C32: Вашингтон | D32: Филадельфия | E32: 102 | F32: 109 | G32: 211 | H32: 199.5 | J32: Б
B33: 02.11. 03:00 | C33: Орландо | D33: Нью-Орлеан | E33: 110 | F33: 90 | G33: 200 | H33: 194.5 | J33: Б
B34: 02.11. 03:00 | C34: Шарлотт | D34: Кливленд | E34: 90 | F34: 84 | G34: 174 | H34: 188.5 | I34: М
B35: 03.11. 06:30 | C35: Голден Стэйт | D35: Сакраменто | E35: 98 | F35: 87 | G35: 185 | H35: 207 | I35: М
B36: 03.11. 06:00 | C36: Портленд | D36: Сан-Антонио | E36: 115 | F36: 105 | G36: 220 | H36: 198 | J36: Б
B37: 03.11. 05:00 | C37: Юта | D37: Хьюстон | E37: 93 | F37: 104 | G37: 197 | H37: 199.5 | I37: М
B38: 03.11. 04:30 | C38: Даллас | D38: Мемфис | E38: 111 | F38: 99 | G38: 210 | H38: 194.5 | J38: Б
B39: 03.11. 04:30 | C39: Милуоки | D39: Торонто | E39: 90 | F39: 97 | G39: 187 | H39: 190.5 | I39: М
B40: 03.11. 04:00 | C40: Нью-Орлеан | D40: Шарлотт | E40: 105 | F40: 84 | G40: 189 | H40: 185.5 | J40: Б
B41: 03.11. 03:30 | C41: Филадельфия | D41: Чикаго | E41: 107 | F41: 104 | G41: 211 | H41: 194.5 | J41: Б
B42: 03.11. 03:00 | C42: Индиана | D42: Кливленд | E42: 89 | F42: 74 | G42: 163 | H42: 188.5 | I42: М

Sheet Лист2
F2: Дата | G2: Команда 1 | H2: Команда 2 | I2: Счет | J2: Общий
F3: 10.01. 07:30 | G3: Денвер | H3: Оклахома | I3: 101 : 88 | J3: =выч_ -> 189 | K3: =IF(F3<>"",MID(I3,1,SEARCH(" ",I3)-1)+MID(I3,SEARCH(" ",I3)+3,9),"") -> 189
F4: 10.01. 05:00 | G4: Нью-Йорк | H4: Майами | I4: 102 : 92 | J4: =выч_ -> 194 | K4: =IF(F4<>"",MID(I4,1,SEARCH(" ",I4)-1)+MID(I4,SEARCH(" ",I4)+3,9),"") -> 194
F5: 09.01. 07:30 | G5: Клипперс | H5: Бостон | I5: 111 : 105 | J5: =выч_ -> 216 | K5: 216
F6: 09.01. 07:00 | G6: Портленд | H6: Орландо | I6: 110 : 94 | J6: =выч_ -> 204 | K6: 204
F7: 09.01. 06:30 | G7: Миннесота | H7: Финикс | I7: 103 : 104 | J7: =выч_ -> 207 | K7: 207
F8: 09.01. 05:00 | G8: Нью-Орлеан | H8: Вашингтон | I8: 96 : 102 | J8: =выч_ -> 198 | K8: 198
F9: 09.01. 05:00 | G9: Хьюстон | H9: Лейкерс | I9: 113 : 99 | J9: =выч_ -> 212 | K9: 212
F10: 09.01. 04:30 | G10: Атланта | H10: Индиана | I10: 97 : 87 | J10: =выч_ -> 184 | K10: 184
F11: 09.01. 04:30 | G11: Бруклин | H11: Голден Стэйт | I11: 102 : 98 | J11: =выч_ -> 200 | K11: 200
F12: 09.01. 04:00 | G12: Сан-Антонио | H12: Даллас | I12: 112 : 90 | J12: =выч_ -> 202 | K12: 202
F13: 09.01. 04:00 | G13: Торонто | H13: Детройт | I13: 112 : 91 | J13: =выч_ -> 203 | K13: 203
F14: 08.01. 07:00 | G14: Сакраменто | H14: Портленд | I14: 123 : 119 | J14: =выч_ -> 242 | K14: 242
F15: 08.01. 06:00 | G15: Денвер | H15: Бостон | I15: 129 : 98 | J15: =выч_ -> 227 | K15: 227
F16: 08.01. 06:00 | G16: Юта | H16: Оклахома | I16: 112 : 101 | J16: =выч_ -> 213 | K16: 213
F17: 08.01. 05:30 | G17: Даллас | H17: Лейкерс | I17: 110 : 97 | J17: =выч_ -> 207 | K17: 207
F18: 08.01. 05:00 | G18: Мемфис | H18: Сан-Антонио | I18: 108 : 110 | J18: =выч_ -> 218 | K18: 218
I19: (98 : 98) | J19: =выч_ -> 196
F20: 08.01. 05:00 | G20: Милуоки | H20: Голден Стэйт | I20: 80 : 101 | J20: =выч_ -> 181 | K20: 181
F21: 08.01. 05:00 | G21: Чикаго | H21: Финикс | I21: 92 : 87 | J21: =выч_ -> 179 | K21: 179
F22: 08.01. 04:30 | G22: Майами | H22: Нью-Орлеан | I22: 107 : 88 | J22: =выч_ -> 195 | K22: 195
F23: 08.01. 04:30 | G23: Нью-Йорк | H23: Детройт | I23: 89 : 85 | J23: =выч_ -> 174 | K23: 174
F24: 08.01. 04:00 | G24: Индиана | H24: Торонто | I24: 86 : 79 | J24: =выч_ -> 165 | K24: 165
F25: 08.01. 04:00 | G25: Кливленд | H25: Филадельфия | I25: 111 : 93 | J25: =выч_ -> 204 | K25: 204
F26: 08.01. 04:00 | G26: Шарлотт | H26: Вашингтон | I26: 83 : 97 | J26: =выч_ -> 180 | K26: 180
F27: 07.01. 07:30 | G27: Клипперс | H27: Орландо | I27: 101 : 81 | J27: =выч_ -> 182 | K27: 182
F28: 07.01. 04:30 | G28: Бруклин | H28: Атланта | I28: 91 : 86 | J28: =выч_ -> 177 | K28: 177
F29: 07.01. 04:00 | G29: Филадельфия | H29: Миннесота | I29: 95 : 126 | J29: =выч_ -> 221 | K29: 221
F30: 06.01. 06:30 | G30: Лейкерс | H30: Денвер | I30: 115 : 137 | J30: =выч_ -> 252 | K30: 252
F31: 06.01. 04:30 | G31: Даллас | H31: Нью-Йорк | I31: 80 : 92 | J31: =выч_ -> 172 | K31: 172
F32: 06.01. 04:00 | G32: Оклахома | H32: Бостон | I32: 119 : 96 | K32: 215
F33: 06.01. 03:00 | G33: Вашингтон | H33: Голден Стэйт | I33: 96 : 112 | K33: 208
F34: 06.01. 03:00 | G34: Кливленд | H34: Индиана | I34: 78 : 82 | K34: 160
F35: 06.01. 03:00 | G35: Майами | H35: Торонто | I35: 102 : 97 | K35: 199
F36: 05.01. 22:00 | G36: Детройт | H36: Мемфис | I36: 84 : 112 | K36: 196
F37: 05.01. 07:00 | G37: Портленд | H37: Филадельфия | I37: 99 : 101 | K37: 200
F38: 05.01. 07:00 | G38: Сакраменто | H38: Шарлотт | I38: 103 : 113 | K38: 216
F39: 05.01. 06:00 | G39: Финикс | H39: Милуоки | I39: 116 : 100 | K39: 216
F40: 05.01. 05:30 | G40: Сан-Антонио | H40: Клипперс | I40: 116 : 92 | K40: 208
F41: 05.01. 05:00 | G41: Миннесота | H41: Оклахома | I41: 111 : 115 | K41: 226
F42: 05.01. 05:00 | G42: Чикаго | H42: Атланта | I42: 91 : 84 | K42: 175
F43: 05.01. 04:30 | G43: Бруклин | H43: Кливленд | I43: 89 : 82 | K43: 171
F44: 05.01. 04:00 | G44: Индиана | H44: Нью-Орлеан | I44: 99 : 82 | K44: 181
F45: 05.01. 04:00 | G45: Орландо | H45: Майами | I45: 94 : 110 | K45: 204
F46: 04.01. 07:30 | G46: Лейкерс | H46: Юта | I46: 110 : 99 | K46: 209
F47: 04.01. 06:00 | G47: Денвер | H47: Мемфис | I47: 111 : 108 | K47: 219
F48: 04.01. 05:30 | G48: Даллас | H48: Клипперс | I48: 112 : 119 | K48: 231
F49: 04.01. 05:00 | G49: Хьюстон | H49: Нью-Йорк | I49: 102 : 100 | K49: 202
F50: 04.01. 04:30 | G50: Атланта | H50: Голден Стэйт | I50: 100 : 101 | K50: 201
F51: 04.01. 04:30 | G51: Бостон | H51: Нью-Орлеан | I51: 92 : 95 | K51: 187
F52: 04.01. 04:00 | G52: Вашингтон | H52: Торонто | I52: 88 : 101 | K52: 189
F53: 03.01. 07:00 | G53: Портленд | H53: Шарлотт | I53: 134 : 104 | K53: 238
F54: 03.01. 07:00 | G54: Сакраменто | H54: Филадельфия | I54: 104 : 113 | K54: 217
F55: 03.01. 06:00 | G55: Финикс | H55: Мемфис | I55: 91 : 99 | K55: 190
F56: 03.01. 06:00 | G56: Юта | H56: Милуоки | I56: 96 : 87 | K56: 183
F57: 03.01. 05:30 | G57: Сан-Антонио | H57: Нью-Йорк | I57: 101 : 105 | K57: 206
F58: 03.01. 05:00 | G58: Оклахома | H58: Бруклин | I58: 93 : 95 | K58: 188
F59: 03.01. 05:00 | G59: Чикаго | H59: Бостон | I59: 94 : 82 | K59: 176
F60: 03.01. 04:30 | G60: Майами | H60: Голден Стэйт | I60: 114 : 123 | K60: 237
F61: 03.01. 04:00 | G61: Кливленд | H61: Орландо | I61: 87 : 81 | K61: 168
I62: (79 : 79)
F63: 02.01. 06:30 | G63: Клипперс | H63: Шарлотт | I63: 112 : 85 | K63: 197
F64: 02.01. 06:00 | G64: Денвер | H64: Филадельфия | I64: 102 : 114 | K64: 216
F65: 02.01. 05:00 | G65: Миннесота | H65: Нью-Орлеан | I65: 124 : 112 | K65: 236
F66: 02.01. 04:00 | G66: Торонто | H66: Индиана | I66: 95 : 82 | K66: 177
F67: 02.01. 03:00 | G67: Вашингтон | H67: Даллас | I67: 78 : 87 | K67: 165
F68: 01.01. 07:30 | G68: Лейкерс | H68: Милуоки | I68: 79 : 94 | K68: =IF(F68<>"",MID(I68,1,SEARCH(" ",I68)-1)+MID(I68,SEARCH(" ",I68)+3,9),"") -> 173
F69: 01.01. 05:00 | G69: Оклахома | H69: Портленд | I69: 94 : 98 | K69: 192
F70: 01.01. 05:00 | G70: Чикаго | H70: Торонто | I70: 79 : 85 | K70: 164
F71: 01.01. 04:00 | G71: Сан-Антонио | H71: Бруклин | I71: 113 : 92 | K71: 205
F72: 01.01. 04:00 | G72: Хьюстон | H72: Сакраменто | I72: 106 : 110 | K72: 216
F73: 01.01. 02:00 | G73: Орландо | H73: Голден Стэйт | I73: 81 : 94 | K73: 175
F74: 01.01. 00:00 | G74: Индиана | H74: Кливленд | I74: 91 : 76 | K74: 167
F75: 31.12. 22:00 | G75: Бостон | H75: Атланта | I75: 91 : 92 | K75: 183
F76: 31.12. 07:30 | G76: Клипперс | H76: Финикс | I76: 88 : 107 | K76: 195
F77: 31.12. 06:00 | G77: Денвер | H77: Майами | I77: 94 : 97 | K77: 191
F78: 31.12. 06:00 | G78: Юта | H78: Шарлотт | I78: 83 : 80 | K78: 163
F79: 31.12. 05:00 | G79: Мемфис | H79: Чикаго | I79: 91 : 95 | K79: 186
F80: 31.12. 05:00 | G80: Миннесота | H80: Даллас | I80: 98 : 100 | K80: 198
F81: 31.12. 05:00 | G81: Нью-Орлеан | H81: Портленд | I81: 110 : 108 | K81: 218
F82: 31.12. 04:30 | G82: Детройт | H82: Вашингтон | I82: 99 : 106 | K82: 205
F83: 30.12. 06:30 | G83: Лейкерс | H83: Филадельфия | I83: 104 : 111 | K83: 215
F84: 30.12. 04:00 | G84: Оклахома | H84: Хьюстон | I84: 117 : 86 | K84: 203
F85: 30.12. 04:00 | G85: Сан-Антонио | H85: Сакраменто | I85: 112 : 104 | K85: 216
F86: 30.12. 03:00 | G86: Кливленд | H86: Голден Стэйт | I86: 104 : 108 | K86: 212
I87: (99 : 99)
F88: 30.12. 03:00 | G88: Орландо | H88: Атланта | I88: 109 : 102 | K88: 211
F89: 29.12. 07:30 | G89: Клипперс | H89: Юта | I89: 98 : 90 | K89: 188
F90: 29.12. 07:00 | G90: Портленд | H90: Майами | I90: 107 : 108 | K90: 215
F91: 29.12. 06:00 | G91: Финикс | H91: Филадельфия | I91: 115 : 101 | K91: 216
F92: 29.12. 05:30 | G92: Милуоки | H92: Миннесота | I92: 95 : 117 | K92: 212
F93: 29.12. 05:00 | G93: Мемфис | H93: Денвер | I93: 120 : 99 | K93: 219
F94: 29.12. 05:00 | G94: Хьюстон | H94: Нью-Орлеан | I94: 107 : 98 | K94: 205
F95: 29.12. 05:00 | G95: Чикаго | H95: Даллас | I95: 83 : 105 | K95: 188
F96: 29.12. 04:30 | G96: Атланта | H96: Шарлотт | I96: 118 : 116 | K96: 234
I97: (101 : 101)
F98: 29.12. 04:00 | G98: Вашингтон | H98: Детройт | I98: 106 : 82 | K98: 188
F99: 29.12. 04:00 | G99: Индиана | H99: Бруклин | I99: 105 : 91 | K99: 196
F100: 29.12. 04:00 | G100: Торонто | H100: Нью-Йорк | I100: 115 : 100 | K100: 215
F101: 28.12. 22:00 | G101: Бостон | H101: Кливленд | I101: 103 : 100 | K101: 203
F102: 28.12. 07:30 | G102: Голден Стэйт | H102: Финикс | I102: 115 : 86 | K102: 201
F103: 28.12. 07:00 | G103: Сакраменто | H103: Майами | I103: 108 : 103 | K103: 211
I104: (89 : 89)
F105: 28.12. 06:00 | G105: Юта | H105: Лейкерс | I105: 105 : 103 | K105: 208
F106: 28.12. 05:00 | G106: Миннесота | H106: Вашингтон | I106: 120 : 98 | K106: 218
F107: 28.12. 05:00 | G107: Нью-Орлеан | H107: Денвер | I107: 105 : 89 | K107: 194
F108: 28.12. 04:30 | G108: Бруклин | H108: Милуоки | I108: 104 : 93 | K108: 197
F109: 28.12. 04:30 | G109: Нью-Йорк | H109: Торонто | I109: 83 : 95 | K109: 178
F110: 28.12. 04:00 | G110: Орландо | H110: Детройт | I110: 109 : 92 | K110: 201
F111: 28.12. 04:00 | G111: Шарлотт | H111: Оклахома | I111: 85 : 89 | K111: 174
F112: 27.12. 07:30 | G112: Портленд | H112: Клипперс | I112: 116 : 112 | K112: 228
I113: (101 : 101)
F114: 27.12. 05:30 | G114: Даллас | H114: Сан-Антонио | I114: 107 : 116 | K114: 223
F115: 27.12. 05:00 | G115: Хьюстон | H115: Мемфис | I115: 100 : 92 | K115: 192
F116: 27.12. 04:00 | G116: Кливленд | H116: Атланта | I116: 125 : 127 | K116: 252
I117: (95 : 95)
F118: 26.12. 07:30 | G118: Голден Стэйт | H118: Клипперс | I118: 105 : 103 | K118: 208
F119: 26.12. 05:00 | G119: Сан-Антонио | H119: Хьюстон | I119: 98 : 111 | K119: 209
F120: 26.12. 02:00 | G120: Лейкерс | H120: Майами | I120: 95 : 101 | K120: 196
F121: 25.12. 23:30 | G121: Нью-Йорк | H121: Оклахома | I121: 94 : 123 | K121: 217
F122: 25.12. 21:00 | G122: Бруклин | H122: Чикаго | I122: 78 : 95 | K122: 173
F123: 24.12. 07:00 | G123: Сакраменто | H123: Нью-Орлеан | I123: 100 : 113 | K123: 213
F124: 24.12. 06:00 | G124: Денвер | H124: Голден Стэйт | I124: 81 : 89 | K124: 170
F125: 24.12. 06:00 | G125: Финикс | H125: Лейкерс | I125: 117 : 90 | K125: 207
F126: 24.12. 05:30 | G126: Сан-Антонио | H126: Торонто | I126: 112 : 99 | K126: 211
F127: 24.12. 05:00 | G127: Мемфис | H127: Юта | I127: 104 : 94 | K127: 198
F128: 24.12. 05:00 | G128: Хьюстон | H128: Даллас | I128: 104 : 111 | K128: 215
F129: 24.12. 04:30 | G129: Бруклин | H129: Индиана | I129: 86 : 103 | K129: 189
F130: 24.12. 04:30 | G130: Майами | H130: Атланта | I130: 121 : 119 | K130: 240
I131: (111 : 111)
F132: 24.12. 04:00 | G132: Кливленд | H132: Детройт | I132: 92 : 115 | K132: =IF(F132<>"",MID(I132,1,SEARCH(" ",I132)-1)+MID(I132,SEARCH(" ",I132)+3,9),"") -> 207
F133: 24.12. 04:00 | G133: Орландо | H133: Нью-Йорк | I133: 98 : 103 | K133: 201
F134: 24.12. 04:00 | G134: Шарлотт | H134: Милуоки | I134: 111 : 110 | K134: 221
I135: (101 : 101)
F136: 23.12. 06:30 | G136: Клипперс | H136: Миннесота | I136: 120 : 116 | K136: 236
I137: (106 : 106)
F138: 23.12. 04:00 | G138: Оклахома | H138: Торонто | I138: 98 : 104 | K138: 202
F139: 23.12. 03:00 | G139: Индиана | H139: Бостон | I139: 106 : 79 | K139: 185
F140: 22.12. 07:30 | G140: Голден Стэйт | H140: Лейкерс | I140: 102 : 83 | K140: 185
F141: 22.12. 07:30 | G141: Клипперс | H141: Денвер | I141: 112 : 91 | K141: 203
F142: 22.12. 07:00 | G142: Портленд | H142: Нью-Орлеан | I142: 110 : 107 | K142: 217
F143: 22.12. 06:00 | G143: Финикс | H143: Даллас | I143: 123 : 108 | K143: 231
F144: 22.12. 05:30 | G144: Милуоки | H144: Филадельфия | I144: 116 : 106 | K144: 222
F145: 22.12. 05:30 | G145: Сан-Антонио | H145: Оклахома | I145: 100 : 113 | K145: 213
F146: 22.12. 05:00 | G146: Чикаго | H146: Кливленд | I146: 100 : 84 | K146: 184
F147: 22.12. 04:30 | G147: Детройт | H147: Хьюстон | I147: 97 : 114 | K147: 211
F148: 22.12. 04:30 | G148: Шарлотт | H148: Юта | I148: 85 : 88 | K148: 173
F149: 22.12. 04:00 | G149: Орландо | H149: Сакраменто | I149: 100 : 105 | K149: 205
F150: 21.12. 22:00 | G150: Бостон | H150: Вашингтон | I150: 99 : 106 | K150: 205
F151: 21.12. 21:00 | G151: Нью-Йорк | H151: Мемфис | I151: 87 : 95 | K151: 182
F152: 21.12. 07:30 | G152: Лейкерс | H152: Миннесота | I152: 104 : 91 | K152: 195
F153: 21.12. 06:00 | G153: Денвер | H153: Финикс | I153: 99 : 103 | K153: 202
F154: 21.12. 05:30 | G154: Даллас | H154: Торонто | I154: 108 : 109 | K154: 217
I155: (101 : 101)
F156: 21.12. 05:00 | G156: Индиана | H156: Хьюстон | I156: 114 : 81 | K156: 195
F157: 21.12. 04:30 | G157: Атланта | H157: Юта | I157: 118 : 85 | K157: 203
F158: 21.12. 04:30 | G158: Детройт | H158: Шарлотт | I158: 106 : 116 | K158: 222
F159: 21.12. 04:30 | G159: Кливленд | H159: Милуоки | I159: 114 : 111 | K159: 225
I160: (96 : 96)
F161: 21.12. 04:30 | G161: Майами | H161: Сакраменто | I161: 122 : 103 | K161: 225
F162: 21.12. 04:00 | G162: Филадельфия | H162: Бруклин | I162: 121 : 120 | K162: 241
I163: (108 : 108)
F164: 20.12. 07:30 | G164: Голден Стэйт | H164: Сан-Антонио | I164: 102 : 104 | K164: 206
F165: 20.12. 05:00 | G165: Оклахома | H165: Чикаго | I165: 107 : 95 | K165: 202
F166: 19.12. 07:30 | G166: Клипперс | H166: Нью-Орлеан | I166: 108 : 95 | K166: 203
F167: 19.12. 06:30 | G167: Хьюстон | H167: Чикаго | I167: 109 : 94 | K167: 203
F168: 19.12. 06:00 | G168: Финикс | H168: Сан-Антонио | I168: 101 : 108 | K168: 209
F169: 19.12. 05:30 | G169: Даллас | H169: Мемфис | I169: 105 : 91 | K169: 196
F170: 19.12. 05:00 | G170: Милуоки | H170: Нью-Йорк | I170: 101 : 107 | K170: 208
I171: (87 : 87)
F172: 19.12. 05:00 | G172: Миннесота | H172: Портленд | I172: 120 : 109 | K172: 229
F173: 19.12. 04:30 | G173: Атланта | H173: Сакраменто | I173: 124 : 107 | K173: 231
F174: 19.12. 04:30 | G174: Бостон | H174: Детройт | I174: 106 : 107 | K174: 213
F175: 19.12. 04:30 | G175: Бруклин | H175: Вашингтон | I175: 107 : 113 | K175: 220
F176: 19.12. 04:00 | G176: Майами | H176: Индиана | I176: 97 : 94 | K176: 191
F177: 19.12. 04:00 | G177: Орландо | H177: Юта | I177: 82 : 86 | K177: 168
F178: 19.12. 04:00 | G178: Торонто | H178: Шарлотт | I178: 102 : 104 | K178: 206
I179: (95 : 95)
F180: 18.12. 07:30 | G180: Голден Стэйт | H180: Нью-Орлеан | I180: 104 : 93 | K180: 197
F181: 18.12. 06:00 | G181: Денвер | H181: Оклахома | I181: 93 : 105 | K181: 198
F182: 18.12. 05:00 | G182: Мемфис | H182: Лейкерс | I182: 92 : 96 | K182: 188
F183: 18.12. 04:00 | G183: Кливленд | H183: Портленд | I183: 116 : 119 | K183: 235
F184: 18.12. 04:00 | G184: Шарлотт | H184: Сакраменто | I184: 95 : 87 | K184: 182
F185: 17.12. 07:30 | G185: Клипперс | H185: Сан-Антонио | I185: 115 : 92 | K185: 207
F186: 17.12. 05:00 | G186: Чикаго | H186: Орландо | I186: 82 : 83 | K186: 165
F187: 17.12. 04:30 | G187: Атланта | H187: Лейкерс | I187: 114 : 100 | K187: 214
F188: 17.12. 04:30 | G188: Бостон | H188: Миннесота | I188: 101 : 97 | K188: 198
F189: 17.12. 04:30 | G189: Бруклин | H189: Филадельфия | I189: 130 : 94 | K189: 224
F190: 17.12. 04:30 | G190: Майами | H190: Юта | I190: 117 : 94 | K190: 211
F191: 17.12. 04:30 | G191: Нью-Йорк | H191: Вашингтон | I191: 101 : 102 | K191: 203
F192: 17.12. 04:00 | G192: Индиана | H192: Детройт | I192: 96 : 101 | K192: 197
F193: 16.12. 05:00 | G193: Денвер | H193: Нью-Орлеан | I193: 102 : 93 | K193: 195
F194: 16.12. 05:00 | G194: Финикс | H194: Голден Стэйт | I194: 106 : 102 | K194: 208
F195: 16.12. 04:00 | G195: Оклахома | H195: Орландо | I195: 101 : 98 | K195: 199
F196: 16.12. 03:00 | G196: Детройт | H196: Портленд | I196: 109 : 111 | K196: =IF(F196<>"",MID(I196,1,SEARCH(" ",I196)-1)+MID(I196,SEARCH(" ",I196)+3,9),"") -> 220
I197: (99 : 99)
F198: 16.12. 03:00 | G198: Мемфис | H198: Миннесота | I198: 93 : 101 | K198: 194
F199: 16.12. 03:00 | G199: Сакраменто | H199: Хьюстон | I199: 106 : 91 | K199: 197
F200: 15.12. 06:00 | G200: Юта | H200: Сан-Антонио | I200: 84 : 100 | K200: 184
F201: 15.12. 05:30 | G201: Даллас | H201: Милуоки | I201: 106 : 93 | K201: 199
... 369 more rows

Sheet Лист3 (hidden)
